fUST/lending_fUST_20240916
["ID","MTS","AMOUNT","RATE_DAILY","PERIOD"]
[338275326,1726477838135,-712.92,0.00021543,3]
[338275327,1726477838145,-356.46,0.00021543,3]
[338275328,1726477838154,-178.23,0.00021543,3]
[338275329,1726477838164,-534.71,0.00021543,3]
[338275330,1726477838173,-34644.8589433,0.00021553,3]
[338275331,1726477838182,-208.6,0.00021563,2]
[338275332,1726477838192,-500.0,0.00021566,2]
[338275333,1726477838202,-500.0,0.00021566,2]
[338275334,1726477838213,-500.0,0.00021566,2]
[338275335,1726477838224,-500.0,0.00021566,2]
[338275336,1726477838236,-500.0,0.00021566,2]
[338275337,1726477838245,-525.13393395,0.00021566,2]
[338275338,1726477838255,-500.0,0.00021566,2]
[338275339,1726477838265,-500.0,0.00021566,2]
[338275340,1726477838274,-500.0,0.00021566,2]
[338275341,1726477838284,-500.0,0.00021566,2]
[338275342,1726477838294,-500.0,0.00021566,2]
[338275343,1726477838305,-500.0,0.00021566,2]
[338275344,1726477838316,-500.0,0.00021566,2]
[338275345,1726477838327,-500.0,0.00021566,2]
[338275346,1726477838336,-500.0,0.00021566,2]
[338275347,1726477838346,-500.0,0.00021566,2]
[338275348,1726477838356,-500.0,0.00021566,2]
[338275349,1726477838365,-500.0,0.00021566,2]
[338275350,1726477838375,-500.0,0.00021566,2]
[338275351,1726477838384,-500.0,0.00021566,2]
[338275352,1726477838394,-500.0,0.00021566,2]
[338275353,1726477838403,-500.0,0.00021566,2]
[338275354,1726477838412,-500.0,0.00021566,2]
[338275355,1726477838422,-500.0,0.00021566,2]
[338275356,1726477838431,-500.0,0.00021566,2]
[338275357,1726477838441,-500.0,0.00021566,2]
[338275358,1726477838451,-500.0,0.00021566,2]
[338275359,1726477838460,-500.0,0.00021566,2]
[338275360,1726477838470,-500.0,0.00021566,2]
[338275361,1726477838479,-500.0,0.00021566,2]
[338275362,1726477838489,-500.0,0.00021566,2]
[338275363,1726477838498,-500.0,0.00021566,2]
[338275364,1726477838508,-253.93578809,0.00021566,2]
[338275365,1726477838517,-500.0,0.00021566,2]
[338275366,1726477838527,-500.0,0.00021566,2]
[338275367,1726477838536,-200.0,0.00021566,2]
[338275368,1726477838546,-500.0,0.00021566,2]
[338275369,1726477838557,-500.0,0.00021566,2]
[338275370,1726477838567,-500.0,0.00021566,2]
[338275371,1726477838576,-500.0,0.00021566,2]
[338275372,1726477838586,-500.0,0.00021566,2]
[338275373,1726477838595,-500.0,0.00021566,2]
[338275374,1726477838604,-600.0,0.00021566,2]
[338275375,1726477838614,-500.0,0.00021566,2]
[338275376,1726477838623,-500.0,0.00021566,2]
[338275377,1726477838633,-169.65336543,0.00021566,2]
[338275378,1726477838646,-500.0,0.00021566,2]
[338275379,1726477838657,-500.0,0.00021566,2]
[338275380,1726477838666,-500.0,0.00021566,2]
[338275381,1726477838675,-500.0,0.00021566,2]
[338275382,1726477838685,-6795.97222684,0.00021571,2]
[338275383,1726477838698,-420.0,0.00021588,2]
[338275384,1726477838708,-154.47825899,0.00021605,2]
[338275385,1726477838719,-208.6,0.00021625,2]
[338275386,1726477838730,-208.6,0.00021688,2]
[338275387,1726477838739,-554.30323,0.00021697,2]
[338275388,1726477838748,-2145.90938189,0.0002171,2]
[338275389,1726477838759,-6795.97222684,0.00021738,2]
[338275390,1726477838771,-208.6,0.00021751,2]
[338275391,1726477838781,-1000.0,0.00021777,2]
[338275392,1726477838791,-34644.8589433,0.00021779,3]
[338275393,1726477838800,-34644.8589433,0.0002178,3]
[338275394,1726477838811,-34644.8589433,0.00021787,3]
[338275395,1726477838822,-183.50505954,0.00021788,2]
[338275396,1726477838832,-282.38910551,0.00021788,2]
[338275397,1726477838842,-167.03312027,0.00021788,2]
[338275398,1726477838853,-500.0,0.00021788,2]
[338275399,1726477838868,-500.0,0.00021788,2]
[338275400,1726477838878,-500.0,0.00021788,2]
[338275401,1726477838890,-229.10642512,0.00021788,2]
[338275402,1726477838900,-500.0,0.00021788,2]
[338275403,1726477839157,-500.0,0.00021788,2]
[338275404,1726477839167,-500.0,0.00021788,2]
[338275405,1726477839177,-500.0,0.00021788,2]
[338275407,1726477839187,-500.0,0.00021788,2]
[338275409,1726477839196,-500.0,0.00021788,2]
[338275411,1726477839206,-261.71934505,0.00021788,2]
[338275412,1726477839216,-500.0,0.00021788,2]
[338275413,1726477839225,-35932.78635906,0.00021789,5]
[338275414,1726477839235,-52330.3213422,0.00021789,3]
[338275415,1726477839245,-34644.8589433,0.00021789,3]
[338275416,1726477839255,-52330.3213422,0.0002179,3]
[338275417,1726477839265,-52330.3213422,0.00021797,3]
[338275418,1726477839274,-34644.8589433,0.00021797,3]
[338275419,1726477839284,-185.89442165,0.00021799,7]
[338275420,1726477839294,-3000.0,0.000218,2]
[338275422,1726477839304,-4296.87879598,0.00021807,3]
[338275423,1726477839334,-3310.84238111,0.00021807,3]
[338275434,1726477839722,-3571.54423797,0.00021807,3]
[338275435,1726477840672,-56366.73458494,0.00021807,3]
[338275436,1726477840681,-3000.0,0.0002181,2]
[338275437,1726477840691,-186.34,0.00021814,2]
[338275438,1726477840700,-208.6,0.00021814,2]
[338275439,1726477840710,-5850.0,0.0002182,2]
[338275440,1726477840720,-151.0,0.0002184,2]
[338275441,1726477840730,-159.919216,0.0002184,2]
[338275442,1726477840740,-69289.7178865,0.0002184,3]
[338275443,1726477840750,-52330.3213422,0.0002185,3]
[338275444,1726477840760,-2253.97321823,0.0002185,3]
[338275445,1726477840772,-927.071673,0.0002185,3]
[338275465,1726477842755,-371.64366461,0.0002185,3]
[338275468,1726477842767,-21748.39171045,0.0002185,3]
[338275470,1726477842780,-27029.24107591,0.0002185,3]
[338275472,1726477842789,-831.0694855,0.00021863,2]
[338275474,1726477842798,-175.47788061,0.00021873,2]
[338275476,1726477842808,-170.912159,0.00021873,2]
[338275478,1726477842820,-17354.79963352,0.00021875,3]
[338275547,1726477873303,170.0,0.00014,2]
[338275549,1726477936647,165.466061,0.00013699,2]
[338275553,1726478403155,2342.14914376,0.000201,60]
[338275555,1726478530509,165.466061,0.00013699,2]
[338275563,1726478808388,-161.06557539,0.00016252,2]
[338275564,1726478849475,908.19,0.00010959,2]
[338275565,1726478860003,756.83,0.00010959,2]
[338275566,1726478870741,630.69,0.00010959,2]
[338275567,1726478877326,65011.63732073,0.0002,120]
[338275568,1726478881273,525.57,0.00010959,2]
[338275571,1726478886079,220.12854676,0.0002051,120]
[338275572,1726478891789,437.98,0.00010959,2]
[338275573,1726478902510,364.98,0.00010959,2]
[338275574,1726478913834,304.15,0.00010959,2]
[338275575,1726478923552,253.46,0.00010959,2]
[338275576,1726478924277,1237.20632141,0.0002,120]
[338275578,1726478934052,211.22,0.00010959,2]
[338275580,1726478944555,176.01,0.00010959,2]
[338275581,1726478954087,-300.0,0.00016252,2]
[338275582,1726478954109,-300.0,0.00016252,2]
[338275583,1726478954130,-494.13026226,0.00016253,2]
[338275584,1726478955530,880.09,0.00010959,2]
[338275618,1726479032159,-656.90878816,0.00016152,2]
[338275619,1726479034152,165.466061,0.00013699,2]
[338275620,1726479038005,-3092.2934225,0.00016152,2]
[338275621,1726479038124,-1738.76796921,0.00016152,2]
[338275622,1726479038137,-4589.40766355,0.00016152,2]
[338275623,1726479038147,-300.0,0.00016252,2]
[338275624,1726479038157,-300.0,0.00016252,2]
[338275625,1726479038168,-55005.68070354,0.00016253,2]
[338275626,1726479038178,-214.76098133,0.000166,2]
[338275627,1726479038188,-914.31962285,0.000167,2]
[338275628,1726479038197,-250.0,0.00016806,2]
[338275629,1726479038207,-250.0,0.00016852,2]
[338275630,1726479038217,-250.0,0.00016899,2]
[338275631,1726479038226,-250.0,0.00016945,2]
[338275632,1726479038236,-250.0,0.00016991,2]
[338275633,1726479038248,-250.0,0.00017037,2]
[338275634,1726479038259,-250.0,0.00017083,2]
[338275635,1726479038268,-250.0,0.00017129,2]
[338275636,1726479038278,-250.0,0.00017175,2]
[338275637,1726479038288,-250.0,0.00017221,2]
[338275638,1726479038299,-768.32243149,0.00017228,2]
[338275639,1726479038308,-214.76098133,0.0001726,2]
[338275640,1726479038322,-250.0,0.00017267,2]
[338275641,1726479038331,-250.0,0.00017313,2]
[338275642,1726479038342,-250.0,0.00017359,2]
[338275643,1726479038353,-250.0,0.00017405,2]
[338275644,1726479038363,-250.0,0.00017452,2]
[338275645,1726479038373,-3367.7946796,0.0001749,2]
[338275646,1726479038383,-250.0,0.00017498,2]
[338275647,1726479038392,-24900.0,0.00017531,2]
[338275648,1726479038402,-250.0,0.00017544,2]
[338275649,1726479038412,-250.0,0.0001759,2]
[338275650,1726479038422,-3000.0,0.00017591,2]
[338275651,1726479038431,-250.0,0.00017636,2]
[338275652,1726479038441,-1999.5057366,0.00017673,2]
[338275653,1726479038451,-250.0,0.00017682,2]
[338275654,1726479038463,-420.0,0.00017764,2]
[338275655,1726479038474,-420.0,0.00017877,2]
[338275656,1726479038485,-214.76098133,0.0001792,2]
[338275657,1726479038495,-237.0965758,0.0001793,2]
[338275658,1726479038506,-500.0,0.00018018,2]
[338275659,1726479038516,-500.0,0.00018018,2]
[338275660,1726479038526,-500.0,0.00018018,2]
[338275661,1726479038536,-500.0,0.00018018,2]
[338275662,1726479038546,-500.0,0.00018018,2]
[338275663,1726479038555,-500.0,0.00018018,2]
[338275664,1726479038566,-500.0,0.00018018,2]
[338275665,1726479038576,-500.0,0.00018018,2]
[338275666,1726479038586,-500.0,0.00018018,2]
[338275667,1726479038596,-500.0,0.00018018,2]
[338275668,1726479038606,-500.0,0.00018018,2]
[338275669,1726479038616,-500.0,0.00018018,2]
[338275670,1726479038626,-500.0,0.00018018,2]
[338275671,1726479038635,-500.0,0.00018018,2]
[338275672,1726479038645,-500.0,0.00018018,2]
[338275673,1726479038655,-500.0,0.00018018,2]
[338275674,1726479038666,-562.04904081,0.00018018,2]
[338275675,1726479038676,-500.0,0.00018018,2]
[338275676,1726479038686,-500.0,0.00018018,2]
[338275677,1726479038695,-500.0,0.00018018,2]
[338275678,1726479038705,-500.0,0.00018018,2]
[338275679,1726479038716,-500.0,0.00018018,2]
[338275680,1726479038727,-500.0,0.00018018,2]
[338275681,1726479038738,-500.0,0.00018018,2]
[338275682,1726479038749,-500.0,0.00018018,2]
[338275683,1726479038759,-500.0,0.00018018,2]
[338275684,1726479038768,-500.0,0.00018018,2]
[338275685,1726479038778,-500.0,0.00018018,2]
[338275686,1726479038787,-500.0,0.00018018,2]
[338275687,1726479038797,-616.13578809,0.00018018,2]
[338275688,1726479038807,-500.0,0.00018018,2]
[338275689,1726479038817,-500.0,0.00018018,2]
[338275690,1726479038828,-500.0,0.00018018,2]
[338275691,1726479038837,-500.0,0.00018018,2]
[338275692,1726479038847,-500.0,0.00018018,2]
[338275693,1726479038856,-500.0,0.00018018,2]
[338275694,1726479038866,-500.0,0.00018018,2]
[338275695,1726479038876,-500.0,0.00018018,2]
[338275696,1726479038886,-500.0,0.00018018,2]
[338275697,1726479038895,-500.0,0.00018018,2]
[338275698,1726479038906,-500.0,0.00018018,2]
[338275699,1726479038916,-500.0,0.00018018,2]
[338275700,1726479038926,-500.0,0.00018018,2]
[338275701,1726479038939,-500.0,0.00018018,2]
[338275702,1726479038949,-500.0,0.00018018,2]
[338275703,1726479038959,-500.0,0.00018018,2]
[338275704,1726479038968,-500.0,0.00018018,2]
[338275705,1726479038978,-500.0,0.00018018,2]
[338275706,1726479038988,-500.0,0.00018018,2]
[338275707,1726479038997,-500.0,0.00018018,2]
[338275708,1726479039007,-500.0,0.00018018,2]
[338275709,1726479039017,-500.0,0.00018018,2]
[338275710,1726479039027,-500.0,0.00018018,2]
[338275711,1726479039039,-500.0,0.00018018,2]
[338275712,1726479039048,-500.0,0.00018018,2]
[338275713,1726479039058,-500.0,0.00018018,2]
[338275714,1726479039070,-500.0,0.00018018,2]
[338275715,1726479039079,-500.0,0.00018018,2]
[338275716,1726479039090,-500.0,0.00018018,2]
[338275717,1726479039100,-500.0,0.00018018,2]
[338275718,1726479039110,-500.0,0.00018018,2]
[338275719,1726479039120,-500.0,0.00018018,2]
[338275720,1726479039131,-500.0,0.00018018,2]
[338275721,1726479039141,-500.0,0.00018018,2]
[338275722,1726479039151,-500.0,0.00018018,2]
[338275723,1726479039161,-500.0,0.00018018,2]
[338275724,1726479039170,-500.0,0.00018018,2]
[338275725,1726479039180,-500.0,0.00018018,2]
[338275726,1726479039189,-500.0,0.00018018,2]
[338275727,1726479039199,-463.24356122,0.00018018,2]
[338275728,1726479039210,-500.0,0.00018018,2]
[338275729,1726479039219,-500.0,0.00018018,2]
[338275730,1726479039228,-500.0,0.00018018,2]
[338275731,1726479039238,-500.0,0.00018018,2]
[338275732,1726479039247,-500.0,0.00018018,2]
[338275733,1726479039257,-500.0,0.00018018,2]
[338275734,1726479039267,-500.0,0.00018018,2]
[338275735,1726479039276,-500.0,0.00018018,2]
[338275736,1726479039286,-500.0,0.00018018,2]
[338275737,1726479039295,-386.1372062,0.00018018,2]
[338275738,1726479039305,-500.0,0.00018018,2]
[338275739,1726479039315,-500.0,0.00018018,2]
[338275740,1726479039325,-500.0,0.00018018,2]
[338275741,1726479039335,-645.6925824,0.00018018,2]
[338275742,1726479039344,-500.0,0.00018018,2]
[338275743,1726479039354,-500.0,0.00018018,2]
[338275744,1726479039363,-500.0,0.00018018,2]
[338275745,1726479039373,-500.0,0.00018018,2]
[338275746,1726479039383,-500.0,0.00018018,2]
[338275747,1726479039393,-500.0,0.00018018,2]
[338275748,1726479039403,-500.0,0.00018018,2]
[338275749,1726479039414,-500.0,0.00018018,2]
[338275750,1726479039424,-500.0,0.00018018,2]
[338275751,1726479039434,-500.0,0.00018018,2]
[338275752,1726479039445,-500.0,0.00018018,2]
[338275753,1726479039455,-500.0,0.00018018,2]
[338275754,1726479039465,-500.0,0.00018018,2]
[338275755,1726479039475,-500.0,0.00018018,2]
[338275756,1726479039486,-500.0,0.00018018,2]
[338275757,1726479039496,-500.0,0.00018018,2]
[338275758,1726479039506,-500.0,0.00018018,2]
[338275759,1726479039516,-500.0,0.00018018,2]
[338275760,1726479039525,-54615.0295076,0.0001802,2]
[338275761,1726479039535,-41685.5548378,0.0001802,2]
[338275762,1726479039545,-3367.79467956,0.0001803,2]
[338275763,1726479039555,-627.41612157,0.0001809,2]
[338275764,1726479039565,-227.80832048,0.00018096,2]
[338275765,1726479039575,-650.21961667,0.00018168,2]
[338275766,1726479039584,-206.85933239,0.00018168,2]
[338275767,1726479039594,-3367.79467956,0.0001857,2]
[338275768,1726479039604,-620.37080608,0.00018994,2]
[338275769,1726479039614,-35932.78635906,0.00019039,5]
[338275770,1726479039624,-2182.69793554,0.00019039,2]
[338275771,1726479039634,-3367.79467956,0.0001911,2]
[338275772,1726479039645,-282.38910551,0.0001913,2]
[338275773,1726479039654,-500.0,0.0001913,2]
[338275774,1726479039664,-183.50505954,0.0001913,2]
[338275775,1726479039673,-500.0,0.0001913,2]
[338275776,1726479039682,-500.0,0.0001913,2]
[338275777,1726479039692,-167.03312027,0.0001913,2]
[338275778,1726479039702,-229.10642512,0.0001913,2]
[338275779,1726479039712,-500.0,0.0001913,2]
[338275780,1726479039721,-500.0,0.0001913,2]
[338275781,1726479039730,-261.71934505,0.0001913,2]
[338275782,1726479039740,-500.0,0.0001913,2]
[338275783,1726479039750,-500.0,0.0001913,2]
[338275784,1726479039759,-500.0,0.0001913,2]
[338275785,1726479039769,-450.0,0.0001913,2]
[338275786,1726479039779,-109230.059015,0.00019131,3]
[338275787,1726479039788,-83371.1096755,0.00019131,3]
[338275788,1726479039798,-185.89442165,0.00019131,2]
[338275789,1726479039807,-54615.0295076,0.00019133,3]
[338275790,1726479039817,-41685.5548378,0.00019133,3]
[338275791,1726479039826,-54615.0295076,0.00019136,3]
[338275792,1726479039836,-41685.5548378,0.00019136,3]
[338275793,1726479039845,-151.0,0.00019136,2]
[338275794,1726479039855,-151.0,0.00019136,2]
[338275795,1726479039865,-54615.0295076,0.00019138,3]
[338275796,1726479039875,-41685.5548378,0.00019138,3]
[338275797,1726479039885,-41685.5548378,0.00019148,3]
[338275798,1726479039895,-151.0,0.00019158,2]
[338275799,1726479039904,-151.0,0.00019158,2]
[338275800,1726479039914,-151.0,0.00019158,2]
[338275801,1726479039924,-231.125015,0.00019158,2]
[338275802,1726479039938,-151.0,0.00019158,2]
[338275803,1726479039948,-231.125015,0.00019158,2]
[338275804,1726479039958,-151.0,0.00019158,2]
[338275805,1726479039967,-151.0,0.00019158,2]
[338275806,1726479039977,-396.644467,0.00019158,2]
[338275807,1726479039987,-396.644467,0.00019158,2]
[338275808,1726479039996,-151.0,0.00019158,2]
[338275809,1726479040005,-151.0,0.00019158,2]
[338275810,1726479040017,-151.0,0.00019158,2]
[338275811,1726479040027,-214.949109,0.00019158,2]
[338275812,1726479040036,-151.0,0.00019158,2]
[338275813,1726479040045,-214.949109,0.00019158,2]
[338275814,1726479040055,-151.0,0.00019158,2]
[338275815,1726479040066,-151.0,0.00019158,2]
[338275816,1726479040079,-151.0,0.00019158,2]
[338275817,1726479040090,-151.0,0.00019158,2]
[338275818,1726479040101,-151.0,0.00019158,2]
[338275819,1726479040111,-151.0,0.00019158,2]
[338275820,1726479040121,-151.0,0.00019158,2]
[338275821,1726479040131,-152.207928,0.00019168,2]
[338275822,1726479040140,-170.864275,0.00019168,2]
[338275823,1726479040149,-151.0,0.00019168,2]
[338275824,1726479040158,-151.0,0.00019168,2]
[338275825,1726479040167,-151.0,0.00019168,2]
[338275826,1726479040178,-151.0,0.00019168,2]
[338275827,1726479040187,-151.0,0.00019168,2]
[338275828,1726479040197,-151.776515,0.00019168,2]
[338275829,1726479040207,-151.0,0.00019168,2]
[338275830,1726479040217,-151.0,0.00019168,2]
[338275831,1726479040227,-151.0,0.00019168,2]
[338275832,1726479040236,-151.0,0.00019168,2]
[338275833,1726479040247,-151.0,0.00019168,2]
[338275834,1726479040256,-151.0,0.00019168,2]
[338275835,1726479040266,-396.644467,0.00019168,2]
[338275836,1726479040275,-396.644467,0.00019168,2]
[338275837,1726479040285,-151.0,0.00019168,2]
[338275838,1726479040295,-151.0,0.00019168,2]
[338275839,1726479040304,-214.949109,0.00019168,2]
[338275840,1726479040315,-151.0,0.00019168,2]
[338275841,1726479040324,-214.949109,0.00019168,2]
[338275842,1726479040334,-151.0,0.00019168,2]
[338275843,1726479040343,-151.0,0.00019168,2]
[338275844,1726479040353,-158.567405,0.00019168,2]
[338275845,1726479040364,-234.29025,0.00019168,2]
[338275846,1726479040373,-522.11005746,0.00019173,2]
[338275847,1726479040383,-159.82206664,0.00019173,2]
[338275848,1726479040392,-254.06511387,0.00019173,2]
[338275849,1726479040402,-500.92074209,0.00019173,2]
[338275850,1726479040413,-500.3670432,0.00019173,2]
[338275851,1726479040423,-500.0,0.00019173,2]
[338275852,1726479040432,-500.0,0.00019173,2]
[338275853,1726479040442,-500.0,0.00019173,2]
[338275854,1726479040451,-500.67266008,0.00019173,2]
[338275855,1726479040462,-500.0,0.00019173,2]
[338275856,1726479040472,-500.0,0.00019173,2]
[338275857,1726479040481,-500.0,0.00019173,2]
[338275858,1726479040491,-500.16155096,0.00019173,2]
[338275859,1726479040502,-160.06625771,0.00019173,2]
[338275860,1726479040512,-513.21623548,0.00019173,2]
[338275861,1726479040522,-500.0,0.00019173,2]
[338275862,1726479040532,-235.76020846,0.00019173,2]
[338275863,1726479040542,-500.0,0.00019173,2]
[338275864,1726479040551,-645.12743921,0.00019173,2]
[338275865,1726479040561,-200.85719413,0.00019173,2]
[338275866,1726479040572,-500.0,0.00019173,2]
[338275867,1726479040583,-359.96575516,0.00019173,2]
[338275868,1726479040592,-500.0,0.00019173,2]
[338275869,1726479040602,-500.0,0.00019173,2]
[338275870,1726479040612,-500.0,0.00019173,2]
[338275871,1726479040621,-500.30836882,0.00019173,2]
[338275872,1726479040631,-500.25810198,0.00019173,2]
[338275873,1726479040642,-500.0,0.00019173,2]
[338275874,1726479040651,-500.0,0.00019173,2]
[338275875,1726479040662,-500.0,0.00019173,2]
[338275876,1726479040671,-156.348928,0.00019173,2]
[338275877,1726479040681,-19092.08723213,0.00019178,5]
[338275878,1726479040690,-500.0,0.00019178,2]
[338275879,1726479040700,-500.0,0.00019178,2]
[338275880,1726479040709,-500.0,0.00019178,2]
[338275881,1726479040719,-500.0,0.00019178,2]
[338275882,1726479040728,-500.0,0.00019178,2]
[338275883,1726479040738,-500.0,0.00019178,2]
[338275884,1726479040748,-500.0,0.00019178,2]
[338275885,1726479040758,-152.952042,0.00019178,2]
[338275886,1726479040767,-533.096893,0.00019178,2]
[338275887,1726479040778,-500.0,0.00019178,2]
[338275888,1726479040790,-559.31746528,0.00019178,2]
[338275889,1726479040802,-501.87713199,0.00019178,2]
[338275890,1726479040812,-500.0,0.00019178,2]
[338275891,1726479040823,-152.189828,0.00019178,2]
[338275892,1726479040832,-500.0,0.00019178,2]
[338275893,1726479040844,-500.0,0.00019178,2]
[338275894,1726479040855,-562.64,0.00019178,2]
[338275895,1726479040866,-500.0,0.00019178,2]
[338275896,1726479040876,-500.0,0.00019178,2]
[338275897,1726479040887,-500.0,0.00019178,2]
[338275898,1726479040898,-500.0,0.00019178,2]
[338275899,1726479040909,-508.03997924,0.00019178,2]
[338275900,1726479040919,-500.0,0.00019178,2]
[338275901,1726479040929,-388.30991188,0.00019178,2]
[338275902,1726479040943,-500.0,0.00019178,2]
[338275903,1726479040953,-500.0,0.00019178,2]
[338275904,1726479040962,-500.0,0.00019178,2]
[338275905,1726479040971,-500.0,0.00019178,2]
[338275906,1726479040980,-500.0,0.00019178,2]
[338275907,1726479040989,-500.0,0.00019178,2]
[338275908,1726479040999,-500.0,0.00019178,2]
[338275909,1726479041008,-500.0,0.00019178,2]
[338275910,1726479041018,-500.0,0.00019178,2]
[338275911,1726479041030,-1206.73,0.00019178,2]
[338275912,1726479041039,-500.0,0.00019178,2]
[338275913,1726479041048,-500.0,0.00019178,2]
[338275914,1726479041057,-500.0,0.00019178,2]
[338275915,1726479041067,-500.0,0.00019178,2]
[338275916,1726479041077,-1135.55,0.00019178,2]
[338275917,1726479041086,-500.0,0.00019178,2]
[338275918,1726479041096,-501.10589361,0.00019178,2]
[338275919,1726479041106,-500.0,0.00019178,2]
[338275920,1726479041115,-500.0,0.00019178,2]
[338275921,1726479041126,-500.0,0.00019178,2]
[338275922,1726479041135,-500.0,0.00019178,2]
[338275923,1726479041144,-1174.84,0.00019178,2]
[338275924,1726479041154,-500.0,0.00019178,2]
[338275925,1726479041164,-513.55203703,0.00019178,2]
[338275926,1726479041173,-500.0,0.00019178,2]
[338275927,1726479041183,-500.0,0.00019178,2]
[338275928,1726479041192,-500.0,0.00019178,2]
[338275929,1726479041201,-500.0,0.00019178,2]
[338275930,1726479041211,-500.0,0.00019178,2]
[338275931,1726479041220,-500.0,0.00019178,2]
[338275932,1726479041229,-500.0,0.00019178,2]
[338275933,1726479041239,-500.0,0.00019178,2]
[338275934,1726479041249,-3450.91,0.00019178,2]
[338275935,1726479041258,-500.0,0.00019178,2]
[338275936,1726479041267,-500.0,0.00019178,2]
[338275937,1726479041276,-500.0,0.00019178,2]
[338275938,1726479041286,-500.0,0.00019178,2]
[338275939,1726479041295,-500.0,0.00019178,2]
[338275940,1726479041304,-500.0,0.00019178,2]
[338275941,1726479041314,-500.0,0.00019178,2]
[338275942,1726479041324,-500.0,0.00019178,2]
[338275943,1726479041527,-500.0,0.00019178,2]
[338275944,1726479041537,-500.0,0.00019178,2]
[338275945,1726479041548,-500.0,0.00019178,2]
[338275946,1726479041558,-500.0,0.00019178,2]
[338275947,1726479041568,-500.0,0.00019178,2]
[338275948,1726479041578,-548.70663045,0.00019178,2]
[338275949,1726479041587,-500.0,0.00019178,2]
[338275950,1726479041597,-500.0,0.00019178,2]
[338275951,1726479041607,-500.0,0.00019178,2]
[338275952,1726479041617,-500.0,0.00019178,2]
[338275953,1726479041627,-500.0,0.00019178,2]
[338275954,1726479041637,-787.15,0.00019178,2]
[338275955,1726479041647,-500.0,0.00019178,2]
[338275956,1726479041656,-500.0,0.00019178,2]
[338275957,1726479041666,-500.0,0.00019178,2]
[338275958,1726479041675,-500.0,0.00019178,2]
[338275959,1726479041685,-500.0,0.00019178,2]
[338275960,1726479041694,-500.0,0.00019178,2]
[338275961,1726479041704,-151.3934,0.00019178,2]
[338275962,1726479041713,-1899.11,0.00019178,2]
[338275963,1726479041723,-500.0,0.00019178,2]
[338275964,1726479041732,-500.0,0.00019178,2]
[338275965,1726479041742,-500.0,0.00019178,2]
[338275966,1726479041751,-500.0,0.00019178,2]
[338275967,1726479041760,-159.07069239,0.00019178,2]
[338275972,1726479042884,-234.66981908,0.00019178,2]
[338275973,1726479042895,-528.67,0.00019178,2]
[338275974,1726479042904,-500.0,0.00019178,2]
[338275975,1726479042914,-500.0,0.00019178,2]
[338275976,1726479042924,-500.0,0.00019178,2]
[338275977,1726479042936,-1501.22,0.00019178,2]
[338275978,1726479042949,-500.0,0.00019178,2]
[338275979,1726479042960,-530.41285962,0.00019178,2]
[338275980,1726479042970,-500.0,0.00019178,2]
[338275981,1726479042980,-500.0,0.00019178,2]
[338275982,1726479042990,-557.4557168,0.00019178,2]
[338275983,1726479043000,-1344.7,0.00019178,2]
[338275984,1726479043010,-500.0,0.00019178,2]
[338275985,1726479043020,-500.0,0.00019178,2]
[338275986,1726479043030,-500.0,0.00019178,2]